bitfinex/quotes_ETHUSD_20250801
["timestamp","ask_amount","ask_price","bid_price","bid_amount"]
[1754046234221,6.45392185,3613.2,3613.0,2.76774001]
[1754046234591,6.45392185,3613.2,3613.0,3.29234001]
[1754046235121,6.45392185,3613.2,3613.1,2.7677064]
[1754046235327,5.72880168,3613.2,3613.1,3.3065064]
[1754046235528,5.72880168,3613.2,3613.1,3.7479064]
[1754046235687,5.72880168,3613.2,3613.0,2.76775336]
[1754046235688,1.46780168,3613.2,3613.0,2.76775336]
[1754046235883,1.46780168,3613.2,3612.7,0.5798]
[1754046235884,4.26,3613.1,3612.9,2.76784973]
[1754046236108,4.26,3613.1,3613.0,2.767783]
[1754046236702,5.99463749,3613.1,3612.7,0.1384]
[1754046236896,4.26,3613.1,3612.9,2.76780823]
[1754046237798,4.26,3613.1,3612.8,0.5388]
[1754046238003,4.26,3613.1,3612.9,2.76785961]
[1754046238189,4.26,3613.1,3612.9,3.30665961]
[1754046238523,4.26,3613.1,3612.9,0.5388]
[1754046238711,4.26,3613.1,3612.8,2.76791383]
[1754046239026,4.26,3613.1,3612.9,2.76783164]
[1754046239392,4.26,3613.1,3612.8,3.30670597]
[1754046239610,4.26,3613.1,3612.7,0.1384]
[1754046239813,4.26,3613.1,3612.5,2.76811642]
[1754046239814,11.48017324,3613.0,3612.5,2.76811642]
[1754046239992,0.1384,3612.8,3612.6,2.76808674]
[1754046240188,4.26,3612.7,3612.6,2.76808674]
[1754046240394,4.26,3612.7,3612.3,0.6792]
[1754046240594,1.46780168,3612.6,3612.4,2.76819171]
[1754046240826,4.26,3612.5,3612.3,0.6792]
[1754046241125,4.26,3612.5,3612.4,2.76824271]
[1754046241335,4.3984,3612.5,3612.3,0.002]
[1754046242234,1.46780168,3612.4,3612.3,2.77031935]
[1754046242440,1.46780168,3612.4,3612.3,0.002]
[1754046242631,2.11308386,3612.4,3612.3,2.77031935]
[1754046242835,2.11308386,3612.4,3612.3,0.002]
[1754046244710,2.11308386,3612.4,3612.3,2.77031935]
[1754046244910,2.11308386,3612.4,3612.3,0.002]
[1754046245140,1.46780168,3612.4,3612.3,3.75051935]
[1754046245354,5.72780168,3612.4,3612.3,3.75051935]
[1754046245532,5.72780168,3612.4,3612.3,0.5408]
[1754046245734,5.72780168,3612.4,3612.3,0.002]
[1754046245914,5.72780168,3612.4,3612.3,3.75051935]
[1754046246246,5.72780168,3612.4,3612.3,3.88891935]
[1754046246762,0.1384,3612.8,3612.7,2.76801284]
[1754046246927,4.3984,3612.8,3612.7,2.76801284]
[1754046247109,4.26,3612.8,3612.7,2.76801284]
[1754046247311,1.46780168,3613.2,3613.0,2.76774566]
[1754046247516,4.26,3613.1,3613.0,3.20914566]
[1754046248012,1.46780168,3613.2,3613.1,2.7677064]
[1754046248212,6.648,3613.6,3613.5,2.76740002]
[1754046248445,10.908,3613.6,3613.5,3.74760002]
[1754046248949,4.26,3613.6,3613.5,3.74760002]
[1754046249942,0.1384,3614.1,3613.6,2.76732267]
[1754046250159,4.26,3614.0,3613.9,2.7670398]
[1754046250453,4.26,3614.0,3613.9,3.3058398]
[1754046250653,0.1384,3614.1,3614.0,2.76701715]
[1754046250864,0.1384,3614.6,3614.4,2.76668932]
[1754046251040,4.26,3614.5,3614.0,2.76695088]
[1754046251368,0.1384,3614.3,3613.9,2.76702994]
[1754046251565,4.26,3614.2,3614.0,2.76699238]
[1754046251866,4.26,3614.2,3614.0,2.76701426]
[1754046252053,4.78027,3614.2,3613.9,2.76709372]
[1754046252249,4.78027,3614.2,3613.8,0.1384]
[1754046252471,16.59194324,3614.2,3613.3,0.9802]
[1754046252643,17.06474324,3614.2,3613.4,2.76742336]
[1754046252963,11.48017324,3613.8,3612.9,3.5388]
[1754046253173,11.48017324,3613.4,3612.5,2.76816608]
[1754046253342,0.1384,3612.6,3612.3,0.002]
[1754046253671,4.262,3612.5,3612.3,2.77030583]
[1754046254025,12.28447324,3613.0,3612.3,0.002]
[1754046254026,8.00453941,3613.0,3612.3,0.002]
[1754046254247,0.1384,3612.6,3612.3,0.002]
[1754046254461,0.1384,3612.4,3612.3,0.002]
[1754046254867,0.1384,3612.4,3612.3,0.83339]
[1754046255026,1.46317,3612.4,3612.3,0.83339]
[1754046255530,4.23141271,3612.4,3612.3,0.002]
[1754046255728,7.78141271,3612.4,3612.3,0.002]
[1754046257279,2.76856017,3612.0,3611.5,0.002]
[1754046257451,4.54385602,3611.9,3611.5,0.002]
[1754046257784,0.1384,3611.6,3611.5,0.002]
[1754046257943,4.4054,3611.6,3611.5,0.002]
[1754046259472,7.1742559,3611.6,3611.5,0.002]
[1754046259776,4.4054,3611.6,3611.5,0.002]
[1754046259941,7.6424815,3611.6,3611.5,0.002]
[1754046260136,11.4431815,3611.6,3611.5,0.002]
[1754046260974,10.6424815,3611.6,3611.5,0.002]
[1754046261157,7.8736256,3611.6,3611.5,0.002]
[1754046261357,4.4044,3611.6,3611.5,0.5011]
[1754046261745,4.4064,3611.6,3611.5,0.9442]
[1754046262145,0.1384,3611.6,3611.5,0.9442]
[1754046262372,4.4064,3611.6,3611.5,0.9442]
[1754046262933,4.4064,3611.6,3611.5,1.31553375]
[1754046262934,4.268,3611.6,3611.5,1.31553375]
[1754046264277,4.268,3611.6,3611.5,0.002]
[1754046264437,4.4064,3611.6,3611.5,0.002]
[1754046266779,4.4064,3611.6,3611.5,0.5011]
[1754046266984,4.4064,3611.6,3611.5,0.002]
[1754046267750,5.87420168,3611.6,3611.5,0.002]
[1754046270089,5.87420168,3611.6,3611.5,0.5011]
[1754046270881,5.87020168,3611.6,3611.5,0.9442]
[1754046271297,1.46780168,3612.1,3612.0,2.76854928]
[1754046271586,1.46780168,3612.1,3612.0,0.9422]
[1754046271587,5.73180168,3612.1,3612.0,0.9422]
[1754046271791,5.73180168,3612.1,3612.0,0.4991]
[1754046271994,5.73180168,3612.1,3611.7,0.9422]
[1754046272170,1.46780168,3612.0,3611.8,0.4991]
[1754046272367,1.46780168,3612.0,3611.7,0.4431]
[1754046272693,0.1384,3611.8,3611.5,0.002]
[1754046272909,0.1384,3611.6,3611.5,0.002]
[1754046274002,0.9706,3611.6,3611.5,0.002]
[1754046274560,0.6076,3611.6,3611.5,0.002]
[1754046274778,0.1384,3611.6,3611.5,0.002]
[1754046275179,1.0314512,3611.6,3611.5,0.002]
[1754046276191,0.1384,3611.6,3611.5,0.5011]
[1754046276494,0.1384,3611.6,3611.5,0.9442]
[1754046276666,0.1384,3611.6,3611.5,3.71313257]
[1754046277301,0.1384,3611.6,3611.5,6.71313257]
[1754046277470,4.269,3611.9,3611.8,2.76870258]
[1754046277808,4.269,3611.9,3611.8,3.71090258]
[1754046278100,4.27,3611.9,3611.8,3.84930258]
[1754046278313,0.1384,3612.5,3612.2,2.76832462]
[1754046278508,4.27,3612.4,3612.2,2.76832462]
[1754046278678,4.27,3612.4,3612.3,3.71051935]
[1754046279697,4.27,3612.4,3612.3,0.9422]
[1754046280089,4.269,3612.4,3612.3,0.9422]
[1754046280294,4.269,3612.4,3612.3,3.71051935]
[1754046280824,4.269,3612.4,3612.3,0.9422]
[1754046281030,4.269,3612.4,3612.3,3.71051935]
[1754046281324,4.269,3612.4,3612.3,0.9422]
[1754046281492,0.1384,3612.5,3612.4,2.76824271]
[1754046281695,4.4064,3612.5,3612.4,3.71044271]
[1754046281874,6.65,3613.1,3612.4,0.9422]
[1754046282074,0.1384,3612.8,3612.5,0.4991]
[1754046282279,0.1384,3612.8,3612.6,0.4991]
[1754046282692,0.1384,3612.8,3612.4,0.4431]
[1754046282886,0.1384,3612.8,3612.4,0.4991]
[1754046283085,0.1384,3612.8,3612.2,0.1384]
[1754046283404,0.1384,3612.8,3611.4,2.76898062]
[1754046283405,1.4956309,3612.8,3611.7,0.4431]
[1754046283602,6.65,3613.1,3612.1,0.4991]
[1754046283901,0.1384,3612.6,3612.2,3.21147207]
[1754046284078,4.279,3612.5,3612.2,0.4431]
[1754046284412,4.279,3612.5,3612.1,2.90684018]
[1754046284413,6.65,3613.1,3612.5,2.76816608]
[1754046284622,0.1384,3612.7,3612.6,0.4991]
[1754046284825,0.1384,3612.7,3612.6,0.9422]
[1754046285027,0.1384,3612.7,3612.6,3.71028946]
[1754046285210,0.1384,3612.7,3612.6,0.9422]
[1754046285384,4.279,3613.0,3612.6,3.71028946]
[1754046285726,4.278,3612.9,3612.7,3.71021284]
[1754046285884,4.278,3612.9,3612.7,0.4431]
[1754046286080,4.278,3612.9,3612.7,0.4991]
[1754046286810,4.278,3612.9,3612.4,3.74158376]
[1754046286986,0.1384,3612.8,3612.4,3.21128376]
[1754046287181,0.1384,3612.8,3612.5,0.5303]
[1754046287409,0.1384,3612.8,3612.3,3.29860998]
[1754046287611,0.1384,3612.8,3612.4,0.5303]
[1754046288187,0.1384,3612.8,3612.3,2.76830998]
[1754046288434,1.25342017,3612.8,3612.2,2.76839559]
[1754046288718,0.1384,3612.5,3612.3,0.5303]
[1754046288921,4.277,3612.4,3612.2,2.76836551]
[1754046289088,4.277,3612.4,3612.3,0.4735]
[1754046289280,4.277,3612.4,3612.3,3.24181935]
[1754046289629,4.277,3612.4,3612.3,3.77211935]
[1754046289781,4.277,3612.4,3612.3,0.5303]
[1754046290124,4.277,3612.4,3612.3,3.77211935]
[1754046291306,0.1384,3612.7,3612.5,2.76814163]
[1754046291510,4.275,3612.6,3612.4,2.76821631]
[1754046291728,4.275,3612.6,3612.5,1.0038]
[1754046291927,4.275,3612.6,3612.5,0.5303]
[1754046292141,4.274,3612.6,3612.2,3.4370272]
[1754046292440,4.274,3612.6,3612.3,3.77211214]
[1754046292641,4.274,3612.5,3612.4,0.5303]
[1754046292800,0.1384,3612.7,3612.6,2.76808946]
[1754046293145,4.274,3612.7,3612.6,3.77188946]
[1754046294216,5.74180168,3612.7,3612.6,0.5303]
[1754046294630,5.74180168,3612.7,3612.4,2.76819857]
[1754046294868,5.74180168,3612.7,3612.2,3.43702072]
[1754046295327,5.74180168,3612.7,3612.2,0.6687]
[1754046295526,5.74180168,3612.7,3612.2,3.29865082]
[1754046295734,5.74180168,3612.7,3611.7,3.0]
[1754046295735,0.1384,3612.6,3612.3,0.5303]
[1754046295924,5.88020168,3612.7,3612.6,2.76808946]
[1754046296128,5.88020168,3612.7,3612.6,3.77188946]
[1754046297346,5.73980168,3612.7,3612.6,3.77188946]
[1754046298360,5.73980168,3612.7,3612.6,3.29838946]
[1754046298526,5.73980168,3612.7,3612.2,3.2986348]
[1754046298725,5.73980168,3612.7,3612.3,2.76830536]
[1754046298726,0.1384,3612.6,3612.3,2.76830536]
[1754046299127,0.1384,3612.6,3612.4,3.29854042]
[1754046299767,0.1384,3612.6,3612.3,2.76830127]
[1754046300234,1.46780168,3612.5,3612.4,2.76819726]
[1754046300449,1.46780168,3612.5,3612.4,0.5303]
[1754046300741,1.46780168,3612.5,3611.9,3.29889171]
[1754046300742,2.05562185,3612.5,3611.9,3.29889171]
[1754046300926,4.268,3612.4,3611.9,3.29889171]
[1754046301127,4.268,3612.4,3612.0,2.76854768]
[1754046301324,1.80930168,3612.3,3611.5,0.002]
[1754046301530,1.46780168,3612.2,3611.5,0.002]
[1754046301744,0.1384,3611.7,3611.5,2.77088247]
[1754046301945,4.27,3611.6,3611.5,2.77088247]
[1754046302144,4.27,3611.6,3611.5,0.002]
[1754046302349,4.269,3611.6,3611.5,0.002]
[1754046302545,4.269,3611.6,3611.5,3.24443257]
[1754046302761,4.269,3611.6,3611.5,1.0058]
[1754046302970,4.269,3611.6,3611.5,3.77473257]
[1754046303328,4.269,3611.6,3611.5,4.42910781]
[1754046303664,1.46780168,3612.2,3612.0,2.76854928]
[1754046303872,4.269,3612.1,3611.6,2.76883228]
[1754046304024,0.1384,3611.9,3611.7,2.76877091]
[1754046304228,4.269,3611.8,3611.6,2.7688419]
[1754046304530,4.269,3611.8,3611.7,0.5303]
[1754046304733,4.269,3611.8,3611.7,3.77257924]
[1754046305370,4.269,3611.8,3611.7,3.29907924]
[1754046305930,4.269,3611.8,3611.7,0.5303]
[1754046306135,5.73680168,3611.8,3611.5,0.002]
[1754046306378,5.73680168,3611.8,3611.7,2.76877924]
[1754046306536,5.73680168,3611.8,3611.7,3.29907924]
[1754046306735,5.87520168,3611.8,3611.7,3.29907924]
[1754046306930,5.87520168,3611.8,3611.7,0.5303]
[1754046307173,5.87520168,3611.8,3611.5,2.77092246]
[1754046307470,5.87520168,3611.8,3611.5,0.5323]
[1754046307630,5.87520168,3611.8,3611.5,0.002]
[1754046307835,5.73680168,3611.8,3611.7,2.76877924]
[1754046308356,5.73680168,3611.8,3611.7,3.77257924]
[1754046308736,5.73680168,3611.8,3611.7,3.29907924]
[1754046309137,5.73680168,3611.8,3611.7,3.77257924]
[1754046309578,1.46780168,3611.8,3611.7,3.77257924]
[1754046309745,1.46780168,3611.8,3611.7,4.44077035]
[1754046309746,5.74180168,3611.8,3611.7,4.44077035]
[1754046310498,0.1384,3612.5,3612.4,2.76824271]
[1754046310802,4.274,3612.5,3612.4,3.77200167]
[1754046310947,4.274,3612.5,3612.4,1.0038]
[1754046311151,4.274,3612.5,3612.4,3.77204271]
[1754046311660,4.274,3612.5,3612.4,3.29854271]
[1754046311848,4.274,3612.5,3612.4,0.5303]
[1754046312048,4.274,3612.5,3612.4,1.0038]
[1754046312352,4.274,3612.5,3612.4,3.77204271]
[1754046312567,4.272,3612.5,3612.4,1.6716831]
[1754046312877,4.272,3612.5,3612.4,4.43991947]
[1754046313685,1.60620168,3612.8,3612.7,2.76801284]
[1754046313886,5.87720168,3612.8,3612.7,2.76801284]
[1754046314394,1.60620168,3612.8,3612.7,2.76801284]
[1754046314683,5.87720168,3612.8,3612.7,2.76801284]
[1754046315483,1.60620168,3612.8,3612.7,3.29831284]
[1754046315664,5.87520168,3612.8,3612.7,3.29831284]
[1754046316723,5.87420168,3612.8,3612.7,3.29831284]
[1754046317275,5.87420168,3612.8,3612.7,2.76801284]
[1754046317477,5.87420168,3612.8,3612.6,2.76802814]
[1754046317877,5.87420168,3612.8,3612.4,0.9919]
[1754046318078,5.87420168,3612.8,3612.3,0.1384]
[1754046318079,1.46780168,3612.7,3612.3,0.1384]
[1754046318279,4.268,3612.6,3612.4,2.76824271]
[1754046319076,4.93130017,3612.6,3611.5,0.5204]
[1754046319313,2.22660168,3612.5,3611.7,2.76870989]
[1754046319525,4.5968,3612.4,3611.7,5.7687083]
[1754046320029,4.5968,3612.4,3611.6,2.76885023]
[1754046320030,0.1384,3611.9,3611.6,2.76885023]
[1754046320328,4.267,3611.8,3611.6,2.76881512]
[1754046320561,4.267,3611.8,3611.5,0.002]
[1754046320733,0.1384,3611.7,3611.5,2.77087948]
[1754046321026,4.267,3611.8,3611.7,2.76877924]
[1754046321239,1.46780168,3612.3,3611.7,2.76877924]
[1754046321240,0.1384,3612.0,3611.9,2.76859628]
[1754046321395,4.267,3612.0,3611.9,3.28699628]
[1754046321717,4.267,3612.0,3611.9,0.5184]
[1754046321919,4.267,3612.0,3611.9,3.28702593]
[1754046322425,1.46780168,3612.3,3612.2,2.76839599]
[1754046322609,5.73380168,3612.3,3612.2,0.5184]
[1754046322810,5.73380168,3612.3,3612.0,0.6568]
[1754046323125,1.46780168,3612.3,3612.2,2.76839599]
[1754046323312,5.73380168,3612.3,3612.2,3.89139599]
[1754046323507,5.73380168,3612.3,3612.2,4.89945733]
[1754046323707,5.73380168,3612.3,3612.2,4.43325733]
[1754046324708,5.73380168,3612.3,3612.2,4.89945733]
[1754046325026,1.46780168,3612.3,3612.2,4.89945733]
[1754046325221,5.73380168,3612.3,3612.2,4.89945733]
[1754046325788,5.73280168,3612.3,3612.2,4.89945733]
[1754046329905,5.73280168,3612.3,3612.2,1.00806134]
[1754046330126,5.73280168,3612.3,3612.1,2.76841935]
[1754046330492,5.73280168,3612.3,3611.9,2.90697813]
[1754046330493,5.73280168,3612.3,3612.2,2.76839599]
[1754046331014,5.72980168,3612.3,3612.2,3.75299599]
[1754046333221,5.72980168,3612.3,3612.2,3.28679599]
[1754046333528,5.72980168,3612.3,3612.2,3.75299599]
[1754046334722,5.72980168,3612.3,3612.2,3.28679599]
[1754046336041,5.72980168,3612.3,3612.2,3.75299599]
[1754046336742,5.72980168,3612.3,3612.2,3.28679599]
[1754046337341,5.72980168,3612.3,3612.2,4.41899031]
[1754046337665,5.72980168,3612.3,3612.2,3.95279031]
[1754046338865,5.72980168,3612.3,3612.2,3.43439031]
[1754046339383,5.72980168,3612.3,3612.2,2.76839599]
[1754046339568,5.72980168,3612.3,3612.1,2.9068217]
[1754046339733,5.72980168,3612.3,3612.1,2.7684217]
[1754046340067,0.1384,3612.2,3611.9,2.76860874]
[1754046340263,4.262,3612.1,3611.9,2.76860874]
[1754046340466,4.262,3612.1,3611.8,2.76867709]
[1754046341255,1.89680168,3612.0,3611.5,0.002]
[1754046341457,4.4004,3611.9,3611.6,2.76881235]
[1754046341664,4.4004,3611.9,3611.5,0.002]
[1754046341665,0.7549,3611.8,3611.5,0.002]
[1754046341830,0.1384,3611.6,3611.5,0.002]
[1754046342665,0.8933,3611.6,3611.5,0.002]
[1754046342858,1.40883,3611.6,3611.5,0.002]
[1754046344001,2.87663168,3611.6,3611.5,0.002]
[1754046345062,6.24533168,3611.6,3611.5,0.002]
[1754046345276,5.86820168,3611.6,3611.5,0.002]
[1754046345891,6.29720168,3611.6,3611.5,0.002]
[1754046346088,6.62310168,3611.6,3611.5,0.002]
[1754046347895,9.94195758,3611.6,3611.5,0.002]
[1754046350383,12.94195758,3611.6,3611.5,0.002]
[1754046350588,12.4926757,3611.6,3611.5,0.002]
[1754046350795,12.4936757,3611.6,3611.5,0.002]
[1754046351431,15.2625316,3611.6,3611.5,0.002]
[1754046352432,2.76900924,3611.4,3611.1,0.012]
[1754046352743,0.1384,3611.2,3611.1,0.012]
[1754046352928,1.16133499,3611.2,3611.1,0.012]
[1754046354317,4.4014,3611.2,3611.1,0.012]
[1754046356145,4.8364,3611.2,3611.1,0.012]
[1754046356440,6.29220168,3611.2,3611.1,0.012]
[1754046356609,5.85720168,3611.2,3611.1,0.012]
[1754046357111,1.59420168,3611.2,3611.1,0.012]
[1754046357316,1.83683745,3611.2,3611.1,0.012]
[1754046357647,6.09983745,3611.2,3611.1,0.5367]
[1754046358013,6.09983745,3611.2,3611.1,0.012]
[1754046360239,6.09983745,3611.2,3611.1,0.9956]
[1754046360472,5.85720168,3611.2,3611.1,0.9956]
[1754046360660,1.59420168,3611.2,3611.1,0.9956]
[1754046360862,5.71880168,3611.2,3611.1,3.76483928]
[1754046361064,5.71880168,3611.2,3611.1,0.9956]
[1754046361368,5.71880168,3611.2,3611.1,3.76483928]
[1754046362280,5.71880168,3611.2,3611.1,0.9956]
[1754046362454,5.71880168,3611.2,3611.1,0.5367]
[1754046362973,6.30452185,3611.2,3611.1,0.5367]
[1754046363174,6.30452185,3611.2,3611.1,0.012]
[1754046363374,6.73952185,3611.2,3611.1,0.012]
[1754046363576,6.30452185,3611.2,3611.1,0.012]
[1754046363788,23.56650726,3611.2,3611.1,0.012]
[1754046364089,21.53914466,3611.2,3611.1,0.012]
[1754046364593,24.30830726,3611.2,3611.1,0.012]
[1754046364779,21.53914466,3611.2,3611.1,0.012]
[1754046364976,17.27614466,3611.2,3611.1,0.012]
[1754046365151,21.53914466,3611.2,3611.1,0.012]
[1754046365351,21.23234466,3611.2,3611.1,0.012]
[1754046366089,16.53434466,3611.2,3611.1,0.012]
[1754046366399,9.30452185,3611.2,3611.1,0.012]
[1754046367040,0.1384,3611.2,3611.1,0.9956]
[1754046367166,1.45580168,3611.7,3611.1,0.9956]
[1754046367522,4.263,3611.6,3611.5,2.76891902]
[1754046367996,4.263,3611.6,3611.5,3.75251902]
[1754046369593,1.30534696,3612.0,3611.6,2.7688559]
[1754046369906,1.30534696,3612.0,3611.7,0.9836]
[1754046370207,4.263,3611.8,3611.7,2.76877924]
[1754046370506,1.30534696,3612.0,3611.8,2.76870258]
[1754046370701,10.916,3611.9,3611.8,2.76870258]
[1754046371008,10.916,3611.9,3611.8,3.75230258]
[1754046371177,10.916,3611.9,3611.8,0.9836]
[1754046371704,12.1381347,3611.9,3611.1,0.012]
[1754046372005,12.1381347,3611.9,3611.2,0.5247]
[1754046372509,12.1381347,3611.9,3611.2,3.75274469]
[1754046373204,12.1381347,3611.9,3611.2,0.9836]
[1754046373437,1.37428817,3611.8,3611.2,0.9836]
[1754046373711,4.262,3611.7,3611.2,0.9836]
[1754046374015,4.262,3611.7,3611.3,0.9836]
[1754046374210,6.653,3611.9,3611.4,0.9836]
[1754046374375,1.30534696,3612.0,3611.9,2.76862593]
[1754046374709,1.30534696,3612.0,3611.9,3.75222593]
[1754046374710,5.56734696,3612.0,3611.9,3.75222593]
[1754046375111,1.30534696,3612.0,3611.9,3.75222593]
[1754046375310,5.56734696,3612.0,3611.9,3.75222593]
[1754046375693,1.30534696,3612.0,3611.9,4.40432622]
[1754046375894,5.56734696,3612.0,3611.9,4.40432622]
[1754046376097,4.262,3612.0,3611.9,4.40432622]
[1754046376682,4.262,3612.0,3611.9,3.75222593]
[1754046377214,4.262,3612.0,3611.9,3.89062593]
[1754046379600,0.1384,3612.6,3612.4,2.76819096]
[1754046379911,4.262,3612.5,3612.3,2.76829526]
[1754046380120,4.262,3612.5,3612.4,3.71754271]
[1754046381111,4.262,3612.5,3612.4,0.9493]
[1754046381890,4.262,3612.5,3612.1,2.90685553]
[1754046382109,4.262,3612.5,3612.2,0.503]
[1754046383004,4.70204,3612.5,3611.6,0.4463]
[1754046383207,0.1384,3612.1,3611.6,1.0877]
[1754046383518,5.44564,3612.5,3611.6,1.0877]
[1754046383519,4.261,3612.0,3611.8,2.76863125]
[1754046383686,0.1384,3611.9,3611.8,0.4463]
[1754046383886,0.1384,3611.9,3611.6,2.76882686]
[1754046384213,0.1384,3611.9,3611.5,2.76889933]
[1754046384517,0.1384,3611.9,3611.1,0.4583]
[1754046384518,0.1384,3611.7,3611.4,2.76900438]
[1754046384681,0.1384,3611.7,3611.2,0.1384]
[1754046385016,0.1384,3611.5,3611.1,2.78120925]
[1754046385196,0.1384,3611.5,3611.3,3.27203682]
[1754046385393,0.1384,3611.5,3611.3,2.76904211]
[1754046386217,0.1384,3611.5,3611.2,0.503]
[1754046386390,0.1384,3611.5,3611.3,2.76906872]
[1754046386595,0.1384,3611.5,3611.4,2.76900924]
[1754046386796,0.1384,3611.5,3611.4,3.27200924]
[1754046387714,0.1384,3611.5,3611.4,3.71830924]
[1754046388755,1.45580168,3612.4,3611.4,0.9493]
[1754046388908,4.261,3612.3,3611.4,0.503]
[1754046389105,0.1384,3611.7,3611.4,0.503]
[1754046389461,0.1384,3611.7,3611.5,0.503]
[1754046389637,0.1384,3611.7,3611.6,2.7688559]
[1754046389950,4.3994,3611.7,3611.6,2.7688559]
[1754046390722,1.45580168,3612.2,3612.0,2.76851062]
[1754046391035,1.45580168,3612.2,3611.3,3.0]
[1754046391036,4.261,3612.1,3611.3,3.0]
[1754046391409,4.261,3612.1,3611.8,2.76869335]
[1754046391609,4.261,3612.1,3612.0,2.76854928]
[1754046391852,4.261,3612.1,3612.0,0.9493]
[1754046392055,4.261,3612.1,3612.0,3.71784928]
[1754046393202,4.261,3612.1,3611.6,3.21508883]
[1754046393402,4.261,3612.1,3611.9,2.76862069]
[1754046393939,4.261,3612.1,3611.9,0.503]
[1754046394120,4.261,3612.1,3611.8,2.76869865]
[1754046394301,4.261,3612.1,3611.9,2.76862187]
[1754046394508,4.261,3612.1,3612.0,3.71784928]
[1754046395029,5.71680168,3612.1,3612.0,0.9493]
[1754046395336,5.71680168,3612.1,3612.0,3.71784928]
[1754046395638,1.45580168,3612.7,3612.0,3.71780352]
[1754046395841,5.71680168,3612.6,3612.2,2.76831987]
[1754046396052,4.261,3612.5,3612.3,3.71760916]
[1754046396225,4.261,3612.5,3612.3,0.4463]
[1754046396549,4.261,3612.5,3612.4,0.503]
[1754046397135,4.261,3612.5,3612.0,0.503]
[1754046397320,4.261,3612.5,3612.1,3.27144015]
[1754046397522,1.45580168,3612.6,3611.9,3.27160782]
[1754046397722,1.45580168,3612.6,3612.2,2.7683776]
[1754046397723,4.261,3612.5,3612.2,2.7683776]
[1754046397922,4.261,3612.5,3612.1,2.76844032]
[1754046398125,0.57168017,3612.5,3611.9,3.27160346]
[1754046398323,4.261,3612.4,3611.9,2.76860346]
[1754046398553,4.261,3612.4,3611.9,3.27160346]
[1754046399055,4.261,3612.4,3612.0,2.7685421]
[1754046399221,4.261,3612.4,3612.0,3.2715421]
[1754046399424,4.261,3612.4,3612.0,0.503]
[1754046399623,4.261,3612.4,3612.2,2.76837886]
[1754046399826,4.261,3612.4,3612.3,2.76831935]
[1754046400156,4.26,3612.4,3612.3,3.27131935]
[1754046400355,1.45580168,3612.6,3612.3,0.503]
[1754046400561,4.26,3612.5,3612.4,3.27124271]
[1754046400856,5.71580168,3612.5,3612.4,3.71754271]
[1754046401062,5.85420168,3612.5,3612.4,3.71754271]
[1754046401224,5.85420168,3612.5,3612.4,0.9493]
[1754046401420,5.85420168,3612.5,3612.4,0.503]
[1754046401822,1.59420168,3612.5,3612.4,0.503]
[1754046402039,5.85420168,3612.5,3612.4,0.503]
[1754046402262,5.85420168,3612.5,3612.4,3.71754271]
[1754046402755,5.71580168,3612.5,3612.4,0.503]
[1754046403129,5.71580168,3612.5,3612.1,3.27146255]
[1754046403324,5.71580168,3612.5,3612.4,2.76824271]
[1754046403546,5.71580168,3612.5,3612.4,3.27124271]
[1754046403733,5.71580168,3612.5,3612.4,3.71754271]
[1754046404163,5.71580168,3612.5,3612.4,0.9493]
[1754046404362,5.71580168,3612.5,3612.4,0.503]
[1754046404763,5.71580168,3612.5,3612.4,3.71754271]
[1754046405067,5.71580168,3612.5,3612.4,0.9493]
[1754046405450,5.71580168,3612.5,3612.1,3.27142186]
[1754046405664,5.71580168,3612.5,3612.0,0.1384]
[1754046405876,0.1384,3612.3,3612.0,2.76850076]
[1754046406176,4.26,3612.2,3612.0,2.76850076]
[1754046406381,4.26,3612.2,3612.0,3.27150076]
[1754046406583,4.26,3612.2,3612.1,2.76847263]
[1754046406888,5.71580168,3612.2,3612.1,2.76847263]
[1754046407384,5.71580168,3612.2,3612.0,3.27151482]
[1754046407731,5.71580168,3612.2,3611.1,0.4856]
[1754046407732,1.74530168,3612.1,3611.1,0.4856]
[1754046407988,0.1384,3611.6,3611.3,2.76908083]
[1754046408130,4.26,3611.5,3611.3,2.76908083]
[1754046408336,4.26,3611.5,3611.4,2.76900924]
[1754046408748,4.26,3611.5,3611.4,0.4606]
[1754046409164,4.26,3611.5,3611.4,3.22960924]
[1754046409664,4.26,3611.5,3611.4,0.4606]
[1754046410383,4.26,3611.5,3611.4,3.22960924]
[1754046410792,4.26,3611.5,3611.4,3.70320924]
[1754046412782,5.71580168,3611.5,3611.4,3.70320924]
[1754046413719,5.71580168,3611.5,3611.4,3.22960924]
[1754046414619,5.71580168,3611.5,3611.3,2.76907043]
[1754046414830,5.71580168,3611.5,3611.2,0.4606]
[1754046415139,5.71580168,3611.5,3611.3,3.22966228]
[1754046415301,5.71580168,3611.5,3611.4,2.76900924]
[1754046415503,5.71580168,3611.5,3611.3,3.22967514]
[1754046415733,5.71580168,3611.5,3611.4,2.76900924]
[1754046416030,5.71580168,3611.5,3611.1,3.71543427]
[1754046416205,5.71580168,3611.5,3611.4,2.76900924]
[1754046416406,5.71580168,3611.5,3611.3,2.76906164]
[1754046416813,5.71580168,3611.5,3611.2,3.22973284]
[1754046417120,5.71580168,3611.5,3611.3,2.76907669]
[1754046417320,5.71580168,3611.5,3611.2,2.76915991]
[1754046417712,5.71580168,3611.5,3611.1,2.78123365]
[1754046418134,5.71580168,3611.5,3611.3,2.76904079]
[1754046418635,5.71580168,3611.5,3611.4,2.76900924]
[1754046418796,5.71580168,3611.5,3611.4,3.22960924]
[1754046419930,5.71580168,3611.5,3611.4,3.70320924]
[1754046420241,1.45580168,3611.5,3611.4,2.76900924]
[1754046420561,10.0,3613.2,3613.1,2.7677064]
[1754046420702,8.69,3613.8,3613.1,0.9342]
[1754046420907,4.99432731,3613.7,3613.2,2.7676298]
[1754046421117,0.1384,3613.5,3613.4,2.76744747]
[1754046421314,4.3984,3613.5,3613.4,2.76744747]
[1754046421529,4.3984,3613.5,3613.4,3.24104747]